fUSD/lending_fUSD_20250125
["ID","MTS","AMOUNT","RATE_DAILY","PERIOD"]
[350375936,1737816679894,-500.0,0.00017808,2]
[350375937,1737816679904,-500.0,0.00017808,2]
[350375938,1737816679913,-369.12515002,0.00017808,2]
[350375939,1737816679922,-500.0,0.00017808,2]
[350375940,1737816679932,-500.0,0.00017808,2]
[350375941,1737816679941,-500.0,0.00017808,2]
[350375942,1737816679951,-674.61,0.00017808,2]
[350375943,1737816679960,-500.0,0.00017808,2]
[350375944,1737816679970,-500.0,0.00017808,2]
[350375945,1737816679980,-736.28,0.00017808,2]
[350375946,1737816679990,-976.83,0.00017808,2]
[350375947,1737816679999,-500.0,0.00017808,2]
[350375948,1737816680010,-571.99,0.00017808,2]
[350375949,1737816680020,-500.0,0.00017808,2]
[350375950,1737816680031,-710.27,0.00017808,2]
[350375951,1737816680042,-500.0,0.00017808,2]
[350375952,1737816680051,-500.0,0.00017808,2]
[350375953,1737816680066,-500.0,0.00017808,2]
[350375954,1737816680075,-949.92,0.00017808,2]
[350375955,1737816680085,-500.0,0.00017808,2]
[350375956,1737816680094,-500.0,0.00017808,2]
[350375957,1737816680105,-500.0,0.00017808,2]
[350375958,1737816680116,-565.45,0.00017808,2]
[350375959,1737816680127,-500.0,0.00017808,2]
[350375960,1737816680138,-504.83,0.00017808,2]
[350375961,1737816680147,-500.0,0.00017808,2]
[350375962,1737816680157,-500.0,0.00017808,2]
[350375963,1737816680167,-500.0,0.00017808,2]
[350375964,1737816680176,-506.71,0.00017808,2]
[350375965,1737816680185,-500.0,0.00017808,2]
[350375966,1737816680195,-500.0,0.00017808,2]
[350375967,1737816680204,-500.0,0.00017808,2]
[350375968,1737816680214,-619.79078843,0.00017808,2]
[350375969,1737816680224,-669.2,0.00017808,2]
[350375970,1737816680233,-500.0,0.00017808,2]
[350375971,1737816680242,-273.13,0.00017808,2]
[350375972,1737816680251,-500.0,0.00017808,2]
[350375973,1737816680261,-500.0,0.00017808,2]
[350375974,1737816680271,-615.41,0.00017808,2]
[350375975,1737816680280,-479.89,0.00017808,2]
[350375976,1737816680289,-500.0,0.00017808,2]
[350375977,1737816680299,-500.0,0.00017808,2]
[350375978,1737816680309,-620.39,0.00017808,2]
[350375979,1737816680319,-500.0,0.00017808,2]
[350375980,1737816680328,-500.0,0.00017808,2]
[350375981,1737816680337,-621.33,0.00017808,2]
[350375982,1737816680347,-847.42,0.00017808,2]
[350375983,1737816680356,-500.0,0.00017808,2]
[350375984,1737816680366,-500.0,0.00017808,2]
[350375985,1737816680376,-636.9,0.00017808,2]
[350375986,1737816680385,-313.05730597,0.00017808,2]
[350375987,1737816680395,-500.0,0.00017808,2]
[350375988,1737816680404,-468.39,0.00017808,2]
[350375989,1737816680413,-500.0,0.00017808,2]
[350375990,1737816680423,-500.0,0.00017808,2]
[350375991,1737816680433,-500.0,0.00017808,2]
[350375992,1737816680442,-500.0,0.00017808,2]
[350375993,1737816680452,-500.0,0.00017808,2]
[350375994,1737816680461,-500.0,0.00017808,2]
[350375995,1737816680471,-500.0,0.00017808,2]
[350375996,1737816680480,-791.91,0.00017808,2]
[350375997,1737816680490,-500.0,0.00017808,2]
[350375998,1737816680500,-500.0,0.00017808,2]
[350375999,1737816680509,-500.0,0.00017808,2]
[350376000,1737816680518,-500.0,0.00017808,2]
[350376001,1737816680528,-500.0,0.00017808,2]
[350376002,1737816680538,-5100.0,0.000179,6]
[350376003,1737816680547,-1169.64,0.00017907,2]
[350376004,1737816680557,-1685.1010789,0.00017934,2]
[350376005,1737816680566,-500.0,0.00017944,2]
[350376006,1737816680576,-500.0,0.00017944,2]
[350376007,1737816680586,-500.0,0.00017944,2]
[350376008,1737816680595,-213.78518886,0.00017945,2]
[350376009,1737816680604,-572.28,0.00017945,2]
[350376010,1737816680614,-500.0,0.00017945,2]
[350376011,1737816680623,-500.0,0.00017945,2]
[350376012,1737816680632,-500.0,0.00017945,2]
[350376013,1737816680642,-500.0,0.00017945,2]
[350376014,1737816680651,-500.0,0.00017945,2]
[350376015,1737816680661,-500.0,0.00017945,2]
[350376016,1737816680670,-500.0,0.00017945,2]
[350376017,1737816680679,-500.0,0.00017945,2]
[350376018,1737816680689,-500.0,0.00017945,2]
[350376019,1737816680698,-500.0,0.00017945,2]
[350376020,1737816680708,-500.0,0.00017945,2]
[350376021,1737816680717,-500.0,0.00017945,2]
[350376022,1737816680727,-500.0,0.00017945,2]
[350376023,1737816680737,-500.0,0.00017945,2]
[350376024,1737816680747,-500.0,0.00017945,2]
[350376025,1737816680756,-500.0,0.00017945,2]
[350376026,1737816680772,-500.0,0.00017945,2]
[350376027,1737816680781,-500.0,0.00017945,2]
[350376028,1737816680790,-500.0,0.00017945,2]
[350376029,1737816680799,-500.0,0.00017945,2]
[350376030,1737816680810,-500.0,0.00017945,2]
[350376031,1737816680820,-500.0,0.00017945,2]
[350376032,1737816680829,-500.0,0.00017945,2]
[350376033,1737816680839,-500.0,0.00017945,2]
[350376034,1737816680849,-500.0,0.00017945,2]
[350376035,1737816680860,-500.0,0.00017945,2]
[350376036,1737816680869,-500.0,0.00017945,2]
[350376037,1737816680881,-500.0,0.00017945,2]
[350376038,1737816680890,-500.0,0.00017945,2]
[350376039,1737816680900,-500.0,0.00017945,2]
[350376040,1737816680909,-500.0,0.00017945,2]
[350376041,1737816680918,-500.0,0.00017945,2]
[350376042,1737816680928,-500.0,0.00017945,2]
[350376043,1737816680938,-500.0,0.00017945,2]
[350376044,1737816680947,-500.0,0.00017945,2]
[350376045,1737816680956,-500.0,0.00017945,2]
[350376046,1737816680967,-500.0,0.00017945,2]
[350376047,1737816680977,-500.0,0.00017945,2]
[350376048,1737816680987,-500.0,0.00017945,2]
[350376049,1737816680997,-500.0,0.00017945,2]
[350376050,1737816681007,-571.63568071,0.00017945,2]
[350376051,1737816681016,-1110.47,0.00017945,2]
[350376052,1737816681025,-892.84,0.00017945,2]
[350376053,1737816681035,-756.23,0.00017945,2]
[350376054,1737816681045,-500.0,0.00017945,2]
[350376055,1737816681056,-500.0,0.00017945,2]
[350376056,1737816681066,-500.0,0.00017945,2]
[350376057,1737816681076,-500.0,0.00017945,2]
[350376058,1737816681086,-500.0,0.00017945,2]
[350376059,1737816681096,-500.0,0.00017945,2]
[350376060,1737816681106,-500.0,0.00017945,2]
[350376061,1737816681115,-500.0,0.00017945,2]
[350376062,1737816681125,-500.0,0.00017945,2]
[350376063,1737816681136,-674.61,0.00017945,2]
[350376064,1737816681145,-500.0,0.00017945,2]
[350376065,1737816681155,-500.0,0.00017945,2]
[350376066,1737816681164,-736.28,0.00017945,2]
[350376067,1737816681174,-976.83,0.00017945,2]
[350376068,1737816681183,-500.0,0.00017945,2]
[350376069,1737816681193,-571.99,0.00017945,2]
[350376070,1737816681203,-500.0,0.00017945,2]
[350376071,1737816681212,-710.27,0.00017945,2]
[350376072,1737816681221,-500.0,0.00017945,2]
[350376073,1737816681230,-500.0,0.00017945,2]
[350376074,1737816681240,-500.0,0.00017945,2]
[350376075,1737816681249,-949.92,0.00017945,2]
[350376076,1737816681259,-500.0,0.00017945,2]
[350376077,1737816681268,-500.0,0.00017945,2]
[350376078,1737816681279,-204.3,0.00017945,2]
[350376079,1737816681289,-565.45,0.00017945,2]
[350376080,1737816681298,-500.0,0.00017945,2]
[350376081,1737816681308,-504.83,0.00017945,2]
[350376082,1737816681317,-500.0,0.00017945,2]
[350376083,1737816681327,-500.0,0.00017945,2]
[350376084,1737816681337,-500.0,0.00017945,2]
[350376085,1737816681347,-500.0,0.00017945,2]
[350376086,1737816681357,-500.0,0.00017945,2]
[350376087,1737816681366,-669.2,0.00017945,2]
[350376088,1737816681378,-500.0,0.00017945,2]
[350376089,1737816681387,-445.17,0.00017945,2]
[350376090,1737816681397,-500.0,0.00017945,2]
[350376091,1737816681406,-615.41,0.00017945,2]
[350376092,1737816681416,-506.64,0.00017945,2]
[350376093,1737816681425,-500.0,0.00017945,2]
[350376094,1737816681434,-620.39,0.00017945,2]
[350376095,1737816681444,-500.0,0.00017945,2]
[350376096,1737816681453,-500.0,0.00017945,2]
[350376097,1737816681463,-847.42,0.00017945,2]
[350376098,1737816681472,-500.0,0.00017945,2]
[350376099,1737816681482,-636.9,0.00017945,2]
[350376100,1737816681491,-500.0,0.00017945,2]
[350376101,1737816681500,-500.0,0.00017945,2]
[350376102,1737816681510,-500.0,0.00017945,2]
[350376103,1737816681520,-500.0,0.00017945,2]
[350376104,1737816681529,-500.0,0.00017945,2]
[350376105,1737816681539,-500.0,0.00017945,2]
[350376106,1737816681548,-791.91,0.00017945,2]
[350376107,1737816681558,-500.0,0.00017945,2]
[350376108,1737816681567,-500.0,0.00017945,2]
[350376109,1737816681577,-500.0,0.00017945,2]
[350376110,1737816681586,-500.0,0.00017945,2]
[350376111,1737816681595,-506.89,0.00017945,2]
[350376112,1737816681604,-181.304,0.00018019,2]
[350376113,1737816681614,-2057.24,0.00018019,2]
[350376114,1737816681624,-26822.15529616,0.00018025,2]
[350376115,1737816681634,-823.0,0.00018028,2]
[350376116,1737816681643,-214.99498812,0.00018055,2]
[350376117,1737816681652,-150.32,0.00018065,2]
[350376118,1737816681661,-500.0,0.00018081,2]
[350376119,1737816681670,-500.0,0.00018081,2]
[350376120,1737816681679,-500.0,0.00018081,2]
[350376121,1737816681687,-480.67946208,0.00018082,2]
[350376122,1737816681697,-500.0,0.00018082,2]
[350376123,1737816681706,-206.13637775,0.00018082,2]
[350376124,1737816681715,-500.0,0.00018082,2]
[350376125,1737816681725,-500.0,0.00018082,2]
[350376126,1737816681734,-500.0,0.00018082,2]
[350376127,1737816681744,-500.0,0.00018082,2]
[350376128,1737816681754,-515.4752666,0.00018082,2]
[350376129,1737816681763,-302.18812098,0.00018082,2]
[350376130,1737816681773,-500.0,0.00018082,2]
[350376131,1737816681783,-253.99,0.00018082,2]
[350376132,1737816681792,-500.0,0.00018082,2]
[350376133,1737816681802,-500.0,0.00018082,2]
[350376134,1737816681811,-500.0,0.00018082,2]
[350376135,1737816681821,-500.0,0.00018082,2]
[350376136,1737816681830,-500.0,0.00018082,2]
[350376137,1737816681840,-500.0,0.00018082,2]
[350376138,1737816681849,-500.0,0.00018082,2]
[350376139,1737816681858,-500.0,0.00018082,2]
[350376140,1737816681868,-500.0,0.00018082,2]
[350376141,1737816681878,-500.0,0.00018082,2]
[350376142,1737816681888,-501.50519256,0.00018082,2]
[350376143,1737816681897,-500.0,0.00018082,2]
[350376144,1737816681907,-500.0,0.00018082,2]
[350376145,1737816681916,-500.0,0.00018082,2]
[350376146,1737816681926,-297.29381965,0.00018082,2]
[350376147,1737816681936,-500.0,0.00018082,2]
[350376148,1737816681945,-627.37767151,0.00018082,2]
[350376149,1737816681955,-500.0,0.00018082,2]
[350376150,1737816681964,-617.68,0.00018082,2]
[350376151,1737816681974,-500.0,0.00018082,2]
[350376152,1737816681984,-500.0,0.00018082,2]
[350376153,1737816681994,-500.0,0.00018082,2]
[350376154,1737816682004,-500.0,0.00018082,2]
[350376155,1737816682013,-500.0,0.00018082,2]
[350376156,1737816682023,-500.0,0.00018082,2]
[350376157,1737816682033,-500.0,0.00018082,2]
[350376158,1737816682042,-610.94,0.00018082,2]
[350376159,1737816682052,-500.0,0.00018082,2]
[350376160,1737816682065,-1110.47,0.00018082,2]
[350376161,1737816682074,-892.84,0.00018082,2]
[350376162,1737816682084,-756.23,0.00018082,2]
[350376163,1737816682093,-500.0,0.00018082,2]
[350376164,1737816682103,-500.0,0.00018082,2]
[350376165,1737816682112,-500.0,0.00018082,2]
[350376166,1737816682121,-500.0,0.00018082,2]
[350376167,1737816682132,-500.0,0.00018082,2]
[350376168,1737816682143,-500.0,0.00018082,2]
[350376169,1737816682153,-500.0,0.00018082,2]
[350376170,1737816682162,-500.0,0.00018082,2]
[350376171,1737816682171,-674.61,0.00018082,2]
[350376172,1737816682181,-500.0,0.00018082,2]
[350376173,1737816682190,-619.87,0.00018082,2]
[350376174,1737816682199,-736.28,0.00018082,2]
[350376175,1737816682208,-976.83,0.00018082,2]
[350376176,1737816682217,-500.0,0.00018082,2]
[350376177,1737816682226,-571.99,0.00018082,2]
[350376178,1737816682236,-500.0,0.00018082,2]
[350376179,1737816682246,-710.27,0.00018082,2]
[350376180,1737816682255,-500.0,0.00018082,2]
[350376181,1737816682264,-500.0,0.00018082,2]
[350376182,1737816682274,-500.0,0.00018082,2]
[350376183,1737816682283,-949.92,0.00018082,2]
[350376184,1737816682293,-160.95147916,0.00018082,2]
[350376185,1737816682303,-500.0,0.00018082,2]
[350376186,1737816682313,-565.45,0.00018082,2]
[350376187,1737816682322,-500.0,0.00018082,2]
[350376188,1737816682332,-504.83,0.00018082,2]
[350376189,1737816682341,-174.43,0.00018082,2]
[350376190,1737816682351,-500.0,0.00018082,2]
[350376191,1737816682361,-500.0,0.00018082,2]
[350376192,1737816682371,-500.0,0.00018082,2]
[350376193,1737816682382,-669.2,0.00018082,2]
[350376194,1737816682392,-500.0,0.00018082,2]
[350376195,1737816682401,-500.0,0.00018082,2]
[350376196,1737816682411,-615.41,0.00018082,2]
[350376197,1737816682420,-500.0,0.00018082,2]
[350376198,1737816682430,-620.39,0.00018082,2]
[350376199,1737816682440,-500.0,0.00018082,2]
[350376200,1737816682448,-847.42,0.00018082,2]
[350376201,1737816682457,-500.0,0.00018082,2]
[350376202,1737816682466,-636.9,0.00018082,2]
[350376203,1737816682476,-500.0,0.00018082,2]
[350376204,1737816682485,-500.0,0.00018082,2]
[350376205,1737816682495,-500.0,0.00018082,2]
[350376206,1737816682505,-500.0,0.00018082,2]
[350376207,1737816682514,-500.0,0.00018082,2]
[350376208,1737816682523,-791.91,0.00018082,2]
[350376209,1737816682534,-500.0,0.00018082,2]
[350376210,1737816682543,-500.0,0.00018082,2]
[350376211,1737816682554,-352.44,0.00018082,2]
[350376212,1737816682563,-500.56,0.00018082,2]
[350376213,1737816682573,-163.82,0.00018082,2]
[350376214,1737816682582,-26707.13551462,0.00018088,2]
[350376215,1737816682592,-3149.38,0.000181,2]
[350376216,1737816682603,-1685.1010789,0.00018107,2]
[350376217,1737816682612,-1500.0,0.00018122,2]
[350376218,1737816682621,-176.7597565,0.00018133,2]
[350376219,1737816682633,-500.64504359,0.00018147,2]
[350376220,1737816682643,-500.0,0.00018164,2]
[350376221,1737816682652,-500.0,0.00018218,2]
[350376222,1737816682662,-500.0,0.00018218,2]
[350376223,1737816682672,-232.84,0.00018218,2]
[350376224,1737816682681,-2308.17,0.00018218,2]
[350376225,1737816682691,-2406345.64105943,0.00018219,2]
[350376226,1737816683080,-1005.16382002,0.00018219,2]
[350376227,1737816683092,-1175.60002381,0.00018219,2]
[350376228,1737816683105,-3920.62780921,0.00018219,2]
[350376229,1737816683352,-500.0,0.00016438,2]
[350376230,1737816683361,-11.4,0.00018219,2]
[350376231,1737816683467,-1301.81499996,0.00018219,2]
[350376232,1737816683590,-500.0,0.00016438,2]
[350376233,1737816683599,-500.0,0.00016438,2]
[350376234,1737816683609,-4037.02498049,0.00018219,2]
[350376235,1737816683620,-9351.8400059,0.00018219,2]
[350376236,1737816683633,-108221.77786082,0.00018219,2]
[350376237,1737816683648,-457.816,0.00018219,2]
[350376238,1737816683763,-500.0,0.00016438,2]
[350376239,1737816683773,-500.0,0.00016438,2]
[350376240,1737816683782,-500.0,0.00016438,2]
[350376241,1737816683791,-500.0,0.00016575,2]
[350376242,1737816683801,-500.0,0.00016712,2]
[350376243,1737816683810,-500.0,0.00016849,2]
[350376244,1737816683820,-500.0,0.00016986,2]
[350376245,1737816683829,-500.0,0.00017123,2]
[350376246,1737816683838,-500.0,0.0001726,2]
[350376247,1737816683848,-500.0,0.00017397,2]
[350376248,1737816683857,-500.0,0.00017534,2]
[350376249,1737816683867,-32923.77303036,0.00018219,2]
[350376250,1737816683877,-500.0,0.00018219,2]
[350376251,1737816683886,-500.0,0.00018219,2]
[350376252,1737816683896,-500.0,0.00018219,2]
[350376253,1737816683905,-500.0,0.00018219,2]
[350376254,1737816683915,-500.0,0.00018219,2]
[350376255,1737816683925,-500.0,0.00018219,2]
[350376256,1737816683935,-500.0,0.00018219,2]
[350376257,1737816683945,-500.0,0.00018219,2]
[350376258,1737816683956,-500.0,0.00018219,2]
[350376259,1737816683966,-500.0,0.00018219,2]
[350376260,1737816683976,-500.0,0.00018219,2]
[350376261,1737816683986,-500.0,0.00018219,2]
[350376262,1737816683995,-488.88,0.00018219,2]
[350376263,1737816684005,-500.0,0.00018219,2]
[350376264,1737816684015,-500.0,0.00018219,2]
[350376265,1737816684025,-500.0,0.00018219,2]
[350376266,1737816684035,-382.232341,0.00018219,2]
[350376267,1737816684045,-500.0,0.00018219,2]
[350376268,1737816684057,-232.4124974,0.00018219,2]
[350376269,1737816684068,-595.52906595,0.00018219,2]
[350376270,1737816684078,-500.0,0.00018219,2]
[350376271,1737816684088,-500.0,0.00018219,2]
[350376272,1737816684099,-500.0,0.00018219,2]
[350376273,1737816684110,-377.29280529,0.00018219,2]
[350376274,1737816684123,-122.70719471,0.00018219,2]
[350376275,1737816684135,-178.04582297,0.00018219,2]
[350376276,1737816684148,-321.95417703,0.00018219,2]
[350376277,1737816684157,-500.0,0.00018219,2]
[350376278,1737816684168,-434.98786697,0.00018219,2]
[350376279,1737816684184,-321.24213303,0.00018219,2]
[350376280,1737816684194,-500.0,0.00018219,2]
[350376281,1737816684204,-500.0,0.00018219,2]
[350376282,1737816684214,-500.0,0.00018219,2]
[350376283,1737816684224,-500.0,0.00018219,2]
[350376284,1737816684234,-500.0,0.00018219,2]
[350376285,1737816684243,-500.0,0.00018219,2]
[350376286,1737816684253,-577.49,0.00018219,2]
[350376287,1737816684262,-500.0,0.00018219,2]
[350376288,1737816684272,-674.61,0.00018219,2]
[350376289,1737816684281,-153.15786697,0.00018219,2]
[350376290,1737816684293,-346.84213303,0.00018219,2]
[350376291,1737816684303,-736.28,0.00018219,2]
[350376292,1737816684312,-976.83,0.00018219,2]
[350376293,1737816684322,-571.99,0.00018219,2]
[350376294,1737816684331,-500.0,0.00018219,2]
[350376295,1737816684340,-710.27,0.00018219,2]
[350376296,1737816684349,-471.84776091,0.00018219,2]
[350376297,1737816684361,-28.15223909,0.00018219,2]
[350376298,1737816684371,-500.0,0.00018219,2]
[350376299,1737816684381,-500.0,0.00018219,2]
[350376300,1737816684391,-200.94776091,0.00018219,2]
[350376305,1737817103694,200.0,0.00022,30]
[350376306,1737817130997,2000.0,0.00022,30]
[350376307,1737817131875,2000.0,0.00022,30]
[350376308,1737817132389,2000.0,0.00022,30]
[350376309,1737817132702,2000.0,0.00022,30]
[350376310,1737817133025,2000.0,0.00022,30]
[350376311,1737817133367,2000.0,0.00022,30]
[350376312,1737817133682,2000.0,0.00022,30]
[350376313,1737817134020,2000.0,0.00022,30]
[350376314,1737817134381,2000.0,0.00022,30]
[350376315,1737817134665,2000.0,0.00022,30]
[350376316,1737817137937,2000.0,0.00022,30]
[350376317,1737817138257,2000.0,0.00022,30]
[350376318,1737817138578,2000.0,0.00022,30]
[350376319,1737817138889,2000.0,0.00022,30]
[350376320,1737817139351,2000.0,0.00022,30]
[350376321,1737817139527,2000.0,0.00022,30]
[350376322,1737817139833,2000.0,0.00022,30]
[350376323,1737817140144,2000.0,0.00022,30]
[350376324,1737817140491,2000.0,0.00022,30]
[350376325,1737817140829,2000.0,0.00022,30]
[350376326,1737817197872,314.0,9e-05,2]
[350376344,1737817394064,2000.0,0.00021,30]
[350376353,1737817832197,-157.48,0.00010137,2]
[350376355,1737817832207,-156.46,0.00012329,2]
[350376356,1737817832217,-182.38116118,0.00013394,2]
[350376357,1737817832226,-1553.51,0.00013663,2]
[350376358,1737817832236,-150.0,0.0001378,2]
[350376359,1737817832245,-300.0,0.0001378,2]
[350376360,1737817832255,-725.16885882,0.0001378,2]
[350376361,1737817832276,-4122.79019215,0.0001378,2]
[350376362,1737817832286,-979.99999999,0.00013781,7]
[350376363,1737817832296,-1965.00164536,0.00013781,7]
[350376364,1737817832307,-66024.05504734,0.00013781,7]
[350376365,1737817832317,-572.31440287,0.0001419,2]
[350376366,1737817832327,-250.0,0.00014793,2]
[350376367,1737817832336,-833.11,0.00014798,2]
[350376368,1737817832345,-200.0,0.00014871,2]
[350376369,1737817832354,-160.50209788,0.000149,2]
[350376370,1737817832364,-250.0,0.00014908,2]
[350376371,1737817832373,-1006.51,0.00014914,2]
[350376372,1737817832382,-583.66,0.00014972,2]
[350376373,1737817832392,-550.0,0.00015,2]
[350376374,1737817832401,-275.64,0.00015092,2]
[350376375,1737817832410,-420.0,0.000151,2]
[350376376,1737817832424,-410.82,0.00015163,2]
[350376377,1737817832438,-973.14,0.00015282,2]
[350376378,1737817832447,-1297.14587407,0.000153,2]
[350376379,1737817832456,-1297.14587394,0.000153,2]
[350376380,1737817832467,-1138.44553881,0.00015383,2]
[350376381,1737817832478,-158.70033513,0.00015383,2]
[350376382,1737817832487,-2635.2284,0.00015536,2]
[350376383,1737817832499,-279.4361,0.00015536,2]
[350376384,1737817832509,-1297.14587394,0.00015624,2]
[350376385,1737817832524,-23900.0,0.00015636,2]
[350376386,1737817832538,-275.64,0.00015847,2]
[350376387,1737817832548,-1297.14587394,0.00015866,2]
[350376388,1737817832558,-1553.51,0.00015927,2]
[350376389,1737817832568,-168.53,0.00015942,2]
[350376390,1737817832578,-250.0,0.00015966,2]
[350376391,1737817832587,-237.37,0.00015982,2]
[350376392,1737817832597,-1000.0,0.00016033,2]
[350376393,1737817832607,-1297.14587394,0.00016107,2]
[350376394,1737817832616,-153.42,0.00016153,2]
[350376395,1737817832626,-200.0,0.00016193,2]
[350376396,1737817832636,-5038.1,0.00016213,2]
[350376397,1737817832646,-1000.0,0.00016238,2]
[350376398,1737817832655,-2006.6589,0.00016338,2]
[350376399,1737817832665,-1297.14587394,0.00016348,2]
[350376400,1737817832675,-518.66450165,0.00016438,2]
[350376401,1737817832685,-500.0,0.00016438,2]
[350376402,1737817832695,-500.0,0.00016438,2]
[350376403,1737817832704,-500.0,0.00016438,2]
[350376404,1737817832714,-500.0,0.00016438,2]
[350376406,1737817832723,-500.0,0.00016438,2]
[350376408,1737817832732,-500.0,0.00016438,2]
[350376410,1737817832742,-502.93150602,0.00016438,2]
[350376412,1737817832752,-500.0,0.00016438,2]
[350376414,1737817832761,-500.0,0.00016438,2]
[350376416,1737817832770,-500.0,0.00016438,2]
[350376418,1737817832780,-500.0,0.00016438,2]
[350376420,1737817832789,-500.0,0.00016438,2]
[350376422,1737817832799,-500.0,0.00016438,2]
[350376424,1737817832808,-500.0,0.00016438,2]
[350376426,1737817832818,-500.0,0.00016438,2]
[350376428,1737817832827,-505.74755549,0.00016438,2]
[350376430,1737817832836,-500.0,0.00016438,2]
[350376432,1737817832846,-503.63927575,0.00016438,2]
[350376434,1737817832856,-503.04163825,0.00016438,2]
[350376436,1737817832865,-500.0,0.00016438,2]
[350376438,1737817832874,-506.06144654,0.00016438,2]
[350376440,1737817832884,-500.0,0.00016438,2]
[350376442,1737817832893,-500.0,0.00016438,2]
[350376444,1737817832903,-506.25348796,0.00016438,2]
[350376446,1737817832912,-500.0,0.00016438,2]
[350376448,1737817832922,-527.50941637,0.00016438,2]
[350376451,1737817832931,-500.0,0.00016438,2]
[350376453,1737817832941,-500.0,0.00016438,2]
[350376456,1737817832951,-500.0,0.00016438,2]
[350376459,1737817832960,-500.0,0.00016438,2]
[350376461,1737817832969,-500.0,0.00016438,2]
[350376464,1737817832979,-500.0,0.00016438,2]
[350376467,1737817832988,-500.0,0.00016438,2]
[350376469,1737817832998,-500.0,0.00016438,2]
[350376471,1737817833009,-500.0,0.00016438,2]
[350376473,1737817833019,-500.0,0.00016438,2]
[350376475,1737817833029,-507.21336057,0.00016438,2]
[350376477,1737817833039,-500.0,0.00016438,2]
[350376479,1737817833048,-500.0,0.00016438,2]
[350376481,1737817833059,-508.90354847,0.00016438,2]
[350376483,1737817833068,-501.3885464,0.00016438,2]
[350376485,1737817833078,-502.15550912,0.00016438,2]
[350376487,1737817833089,-500.0,0.00016438,2]
[350376489,1737817833099,-500.0,0.00016438,2]
[350376491,1737817833108,-500.0,0.00016438,2]
[350376493,1737817833118,-300.0,0.00016438,2]
[350376495,1737817833128,-506.85485099,0.00016438,2]
[350376497,1737817833138,-503.63748551,0.00016438,2]
[350376499,1737817833147,-500.0,0.00016438,2]
[350376501,1737817833157,-500.0,0.00016438,2]
[350376503,1737817833167,-500.0,0.00016438,2]
[350376505,1737817833176,-500.0,0.00016438,2]
[350376507,1737817833186,-500.0,0.00016438,2]
[350376509,1737817833196,-514.10154823,0.00016438,2]
[350376511,1737817833205,-500.0,0.00016438,2]
[350376513,1737817833215,-500.0,0.00016438,2]
[350376515,1737817833224,-500.0,0.00016438,2]
[350376540,1737817833457,-500.0,0.00016438,2]
[350376542,1737817833469,-500.0,0.00016438,2]
[350376544,1737817833479,-500.0,0.00016438,2]
[350376546,1737817833489,-500.0,0.00016438,2]
[350376548,1737817833500,-500.0,0.00016438,2]
[350376550,1737817833510,-500.0,0.00016438,2]
[350376552,1737817833520,-500.0,0.00016438,2]
[350376554,1737817833530,-500.0,0.00016438,2]